fUSD/lending_fUSD_20240428
["ID","MTS","AMOUNT","RATE_DAILY","PERIOD"]
[324813974,1714341059414,-1576.14,0.00013425,2]
[324813975,1714341059424,-168.34,0.00013425,2]
[324813976,1714341059434,-517.0,0.00013425,2]
[324813977,1714341059443,-500.0,0.00013696,2]
[324813978,1714341059453,-325.9,0.00013696,2]
[324813979,1714341059463,-500.0,0.00013696,2]
[324813980,1714341059473,-500.0,0.00013696,2]
[324813981,1714341059483,-500.0,0.00013696,2]
[324813982,1714341059492,-500.0,0.00013696,2]
[324813983,1714341059502,-500.0,0.00013696,2]
[324813984,1714341059513,-500.0,0.00013696,2]
[324813985,1714341059525,-500.0,0.00013696,2]
[324813986,1714341059536,-500.0,0.00013696,2]
[324813987,1714341059545,-2064.16,0.00013697,2]
[324813988,1714341059556,-843.47,0.00013697,2]
[324813989,1714341059567,-1166.48,0.00013697,2]
[324813990,1714341059578,-592.13,0.00013697,2]
[324813991,1714341059589,-2311.26,0.00013697,2]
[324813992,1714341059600,-631.0,0.00013697,2]
[324813993,1714341059611,-2248.85,0.00013697,2]
[324813994,1714341059621,-500.0,0.00013698,2]
[324813995,1714341059632,-500.0,0.00013698,2]
[324813996,1714341059642,-500.0,0.00013698,2]
[324813997,1714341059652,-500.0,0.00013698,2]
[324813998,1714341059664,-500.0,0.00013698,2]
[324813999,1714341059674,-743.26,0.00013698,2]
[324814000,1714341059685,-1035.98,0.00013698,2]
[324814001,1714341059696,-583.16,0.00013698,2]
[324814002,1714341059706,-658.41,0.00013698,2]
[324814003,1714341059718,-500.0,0.00013698,2]
[324814004,1714341059731,-1038.44,0.00013698,2]
[324814005,1714341059741,-751.72,0.00013698,2]
[324814006,1714341059752,-510.93,0.00013698,2]
[324814007,1714341059762,-500.0,0.00013698,2]
[324814008,1714341059772,-500.0,0.00013698,2]
[324814009,1714341059782,-612.97,0.00013698,2]
[324814010,1714341059793,-500.0,0.00013698,2]
[324814011,1714341059804,-500.0,0.00013698,2]
[324814012,1714341059813,-500.0,0.00013698,2]
[324814013,1714341059823,-539.7,0.00013698,2]
[324814014,1714341059834,-500.0,0.00013698,2]
[324814015,1714341059844,-500.0,0.00013698,2]
[324814016,1714341059856,-500.0,0.00013698,2]
[324814017,1714341059866,-1043.37,0.00013698,2]
[324814018,1714341059877,-500.0,0.00013698,2]
[324814019,1714341059887,-666.72,0.00013698,2]
[324814020,1714341059898,-500.0,0.00013698,2]
[324814021,1714341059909,-500.0,0.00013698,2]
[324814022,1714341059919,-685.26,0.00013698,2]
[324814023,1714341059930,-500.0,0.00013698,2]
[324814024,1714341059940,-1020.32,0.00013698,2]
[324814025,1714341059950,-500.0,0.00013698,2]
[324814026,1714341059960,-502.9,0.00013698,2]
[324814027,1714341059971,-657.62,0.00013698,2]
[324814028,1714341059982,-500.0,0.00013698,2]
[324814029,1714341059994,-489.49,0.00013698,2]
[324814030,1714341060004,-529.3,0.00013698,2]
[324814031,1714341060014,-606.75,0.00013698,2]
[324814032,1714341060026,-500.0,0.00013698,2]
[324814033,1714341060036,-863.33,0.00013698,2]
[324814034,1714341060046,-1529.21,0.00013698,2]
[324814035,1714341060055,-500.0,0.00013698,2]
[324814036,1714341060065,-518.89,0.00013698,2]
[324814037,1714341060074,-822.56,0.00013698,2]
[324814038,1714341060084,-4168.98,0.00013698,2]
[324814039,1714341060095,-671.78,0.00013698,2]
[324814040,1714341060106,-500.0,0.00013698,2]
[324814041,1714341060116,-1616.93,0.00013698,2]
[324814042,1714341060126,-500.0,0.00013698,2]
[324814043,1714341060136,-721.38,0.00013698,2]
[324814044,1714341060148,-1027.03,0.00013698,2]
[324814045,1714341060158,-500.0,0.00013698,2]
[324814046,1714341060168,-7823.72,0.00013698,2]
[324814047,1714341060178,-547.0,0.00013698,2]
[324814048,1714341060188,-500.0,0.00013698,2]
[324814049,1714341060199,-500.0,0.00013698,2]
[324814050,1714341060209,-500.0,0.00013698,2]
[324814051,1714341060220,-500.0,0.00013698,2]
[324814052,1714341060230,-2815.22,0.00013698,2]
[324814053,1714341060239,-1064.93,0.00013698,2]
[324814054,1714341060249,-500.0,0.00013698,2]
[324814055,1714341060259,-500.0,0.00013698,2]
[324814056,1714341060270,-765.24,0.00013698,2]
[324814057,1714341060280,-500.0,0.00013698,2]
[324814058,1714341060289,-500.0,0.00013698,2]
[324814059,1714341060299,-904.55,0.00013698,2]
[324814060,1714341060309,-500.0,0.00013698,2]
[324814061,1714341060319,-500.0,0.00013698,2]
[324814062,1714341060544,-596.75,0.00013698,2]
[324814063,1714341060575,-1292.15,0.00013698,2]
[324814064,1714341060586,-500.0,0.00013698,2]
[324814065,1714341060596,-17248.02,0.00013698,2]
[324814066,1714341060606,-1054.15,0.00013698,2]
[324814067,1714341060615,-500.0,0.00013698,2]
[324814068,1714341060624,-500.0,0.00013698,2]
[324814069,1714341060635,-250.0,0.00013699,2]
[324814070,1714341060644,-1183.0,0.0001387,2]
[324814071,1714341060653,-2995.16983819,0.000139,2]
[324814072,1714341060664,-157.042906,0.00013948,2]
[324814073,1714341060674,-500.0,0.0001397,2]
[324814074,1714341060684,-500.0,0.0001397,2]
[324814075,1714341060694,-500.0,0.0001397,2]
[324814076,1714341060703,-500.0,0.0001397,2]
[324814077,1714341060712,-500.0,0.0001397,2]
[324814078,1714341060721,-500.0,0.0001397,2]
[324814079,1714341060731,-500.0,0.0001397,2]
[324814080,1714341060740,-500.0,0.0001397,2]
[324814081,1714341060750,-500.0,0.0001397,2]
[324814082,1714341060760,-2064.16,0.00013971,2]
[324814083,1714341060769,-843.47,0.00013971,2]
[324814084,1714341060778,-1166.48,0.00013971,2]
[324814085,1714341060787,-592.13,0.00013971,2]
[324814086,1714341060797,-2311.26,0.00013971,2]
[324814087,1714341060806,-2248.85,0.00013971,2]
[324814088,1714341060815,-500.0,0.00013971,2]
[324814089,1714341060825,-500.0,0.00013972,2]
[324814090,1714341060835,-500.0,0.00013972,2]
[324814091,1714341060844,-500.0,0.00013972,2]
[324814092,1714341060853,-500.0,0.00013972,2]
[324814093,1714341060862,-500.0,0.00013972,2]
[324814094,1714341060871,-743.26,0.00013972,2]
[324814095,1714341060880,-1035.98,0.00013972,2]
[324814096,1714341060890,-583.16,0.00013972,2]
[324814097,1714341060899,-658.41,0.00013972,2]
[324814098,1714341060908,-500.0,0.00013972,2]
[324814099,1714341060917,-1038.44,0.00013972,2]
[324814100,1714341060926,-751.72,0.00013972,2]
[324814101,1714341060935,-77.04552667,0.00013972,2]
[324814102,1714341060955,-433.88447333,0.00013972,2]
[324814103,1714341060964,-500.0,0.00013972,2]
[324814104,1714341060973,-500.0,0.00013972,2]
[324814105,1714341060983,-612.97,0.00013972,2]
[324814106,1714341060992,-500.0,0.00013972,2]
[324814107,1714341061000,-500.0,0.00013972,2]
[324814108,1714341061010,-500.0,0.00013972,2]
[324814109,1714341061018,-539.7,0.00013972,2]
[324814110,1714341061028,-500.0,0.00013972,2]
[324814111,1714341061037,-631.41498561,0.00013972,2]
[324814112,1714341061046,-500.0,0.00013972,2]
[324814113,1714341061056,-1043.37,0.00013972,2]
[324814114,1714341061066,-500.0,0.00013972,2]
[324814115,1714341061075,-666.72,0.00013972,2]
[324814116,1714341061086,-500.0,0.00013972,2]
[324814117,1714341061102,-500.0,0.00013972,2]
[324814118,1714341061112,-685.26,0.00013972,2]
[324814119,1714341061122,-500.0,0.00013972,2]
[324814120,1714341061131,-1020.32,0.00013972,2]
[324814121,1714341061141,-500.0,0.00013972,2]
[324814122,1714341061151,-502.9,0.00013972,2]
[324814123,1714341061160,-657.62,0.00013972,2]
[324814124,1714341061172,-500.0,0.00013972,2]
[324814125,1714341061182,-529.3,0.00013972,2]
[324814126,1714341061193,-606.75,0.00013972,2]
[324814127,1714341061202,-500.0,0.00013972,2]
[324814128,1714341061211,-863.33,0.00013972,2]
[324814129,1714341061220,-1529.21,0.00013972,2]
[324814130,1714341061229,-626.49532512,0.00013972,2]
[324814131,1714341061238,-518.89,0.00013972,2]
[324814132,1714341061248,-822.56,0.00013972,2]
[324814133,1714341061257,-4168.98,0.00013972,2]
[324814134,1714341061266,-671.78,0.00013972,2]
[324814135,1714341061276,-500.0,0.00013972,2]
[324814136,1714341061285,-1616.93,0.00013972,2]
[324814137,1714341061295,-238.71,0.00013972,2]
[324814138,1714341061305,-721.38,0.00013972,2]
[324814139,1714341061314,-1027.03,0.00013972,2]
[324814140,1714341061324,-500.0,0.00013972,2]
[324814141,1714341061333,-7823.72,0.00013972,2]
[324814142,1714341061343,-547.0,0.00013972,2]
[324814143,1714341061353,-500.0,0.00013972,2]
[324814144,1714341061362,-500.0,0.00013972,2]
[324814145,1714341061372,-500.0,0.00013972,2]
[324814146,1714341061381,-500.0,0.00013972,2]
[324814147,1714341061391,-2815.22,0.00013972,2]
[324814148,1714341061400,-1064.93,0.00013972,2]
[324814149,1714341061409,-404.76415213,0.00013972,2]
[324814150,1714341061418,-500.0,0.00013972,2]
[324814151,1714341061428,-765.24,0.00013972,2]
[324814152,1714341061437,-500.0,0.00013972,2]
[324814153,1714341061447,-500.0,0.00013972,2]
[324814154,1714341061458,-904.55,0.00013972,2]
[324814155,1714341061468,-500.0,0.00013972,2]
[324814156,1714341061477,-500.0,0.00013972,2]
[324814157,1714341061487,-596.75,0.00013972,2]
[324814158,1714341061497,-1292.15,0.00013972,2]
[324814159,1714341061506,-500.0,0.00013972,2]
[324814160,1714341061517,-17248.02,0.00013972,2]
[324814161,1714341061528,-1054.15,0.00013972,2]
[324814162,1714341061539,-500.0,0.00013972,2]
[324814163,1714341061549,-230.31379333,0.00013972,2]
[324814164,1714341061559,-517.0,0.00013973,2]
[324814165,1714341061569,-1228.0,0.00013984,2]
[324814166,1714341061579,-542.0,0.00013984,2]
[324814167,1714341061590,-157.042906,0.00013998,2]
[324814168,1714341061599,-400.0,0.00014057,2]
[324814169,1714341061608,-261.66511868,0.00014121,2]
[324814170,1714341061618,-500.0,0.00014244,2]
[324814171,1714341061627,-500.0,0.00014244,2]
[324814172,1714341061638,-500.0,0.00014244,2]
[324814173,1714341061647,-500.0,0.00014244,2]
[324814174,1714341061658,-500.0,0.00014244,2]
[324814175,1714341061667,-500.0,0.00014244,2]
[324814176,1714341061680,-500.0,0.00014244,2]
[324814177,1714341061691,-500.0,0.00014244,2]
[324814178,1714341061701,-500.0,0.00014244,2]
[324814179,1714341061711,-2064.16,0.00014245,2]
[324814180,1714341061721,-843.47,0.00014245,2]
[324814181,1714341061730,-1166.48,0.00014245,2]
[324814182,1714341061741,-592.13,0.00014245,2]
[324814183,1714341061750,-2311.26,0.00014245,2]
[324814184,1714341061759,-2248.85,0.00014245,2]
[324814185,1714341061768,-500.0,0.00014246,2]
[324814186,1714341061777,-500.0,0.00014246,2]
[324814187,1714341061787,-500.0,0.00014246,2]
[324814188,1714341061796,-500.0,0.00014246,2]
[324814189,1714341061805,-500.0,0.00014246,2]
[324814190,1714341061815,-743.26,0.00014246,2]
[324814191,1714341061824,-1035.98,0.00014246,2]
[324814192,1714341061834,-583.16,0.00014246,2]
[324814193,1714341061844,-658.41,0.00014246,2]
[324814194,1714341061854,-500.0,0.00014246,2]
[324814195,1714341061865,-1038.44,0.00014246,2]
[324814196,1714341061874,-751.72,0.00014246,2]
[324814197,1714341061885,-510.93,0.00014246,2]
[324814198,1714341061894,-500.0,0.00014246,2]
[324814199,1714341061904,-500.0,0.00014246,2]
[324814200,1714341061914,-612.97,0.00014246,2]
[324814201,1714341061923,-500.0,0.00014246,2]
[324814202,1714341061933,-500.0,0.00014246,2]
[324814203,1714341061946,-500.0,0.00014246,2]
[324814204,1714341061956,-539.7,0.00014246,2]
[324814205,1714341061965,-500.0,0.00014246,2]
[324814206,1714341061975,-500.0,0.00014246,2]
[324814207,1714341061984,-1043.37,0.00014246,2]
[324814208,1714341061994,-500.0,0.00014246,2]
[324814209,1714341062004,-666.72,0.00014246,2]
[324814210,1714341062013,-500.0,0.00014246,2]
[324814211,1714341062023,-500.0,0.00014246,2]
[324814212,1714341062033,-685.26,0.00014246,2]
[324814213,1714341062042,-500.0,0.00014246,2]
[324814214,1714341062051,-1020.32,0.00014246,2]
[324814215,1714341062060,-500.0,0.00014246,2]
[324814216,1714341062070,-502.9,0.00014246,2]
[324814217,1714341062079,-657.62,0.00014246,2]
[324814218,1714341062089,-500.0,0.00014246,2]
[324814219,1714341062102,-529.3,0.00014246,2]
[324814220,1714341062111,-606.75,0.00014246,2]
[324814221,1714341062120,-500.0,0.00014246,2]
[324814222,1714341062129,-863.33,0.00014246,2]
[324814223,1714341062138,-1529.21,0.00014246,2]
[324814224,1714341062147,-518.89,0.00014246,2]
[324814225,1714341062156,-822.56,0.00014246,2]
[324814226,1714341062167,-4168.98,0.00014246,2]
[324814227,1714341062179,-671.78,0.00014246,2]
[324814228,1714341062189,-500.0,0.00014246,2]
[324814229,1714341062198,-1616.93,0.00014246,2]
[324814230,1714341062208,-721.38,0.00014246,2]
[324814231,1714341062217,-1027.03,0.00014246,2]
[324814232,1714341062227,-500.0,0.00014246,2]
[324814233,1714341062237,-7823.72,0.00014246,2]
[324814234,1714341062247,-547.0,0.00014246,2]
[324814235,1714341062256,-500.0,0.00014246,2]
[324814236,1714341062267,-500.0,0.00014246,2]
[324814237,1714341062278,-739.98,0.00014246,2]
[324814238,1714341062288,-568.01,0.00014246,2]
[324814239,1714341062298,-500.0,0.00014246,2]
[324814240,1714341062308,-2815.22,0.00014246,2]
[324814241,1714341062319,-1064.93,0.00014246,2]
[324814242,1714341062329,-500.0,0.00014246,2]
[324814243,1714341062339,-765.24,0.00014246,2]
[324814244,1714341062348,-500.0,0.00014246,2]
[324814245,1714341062358,-500.0,0.00014246,2]
[324814246,1714341062367,-904.55,0.00014246,2]
[324814247,1714341062377,-500.0,0.00014246,2]
[324814248,1714341062387,-500.0,0.00014246,2]
[324814249,1714341062396,-596.75,0.00014246,2]
[324814250,1714341062406,-1292.15,0.00014246,2]
[324814251,1714341062416,-500.0,0.00014246,2]
[324814252,1714341062425,-17248.02,0.00014246,2]
[324814253,1714341062434,-1054.15,0.00014246,2]
[324814254,1714341062444,-222.38781404,0.00014246,2]
[324814255,1714341062454,-500.0,0.00014518,2]
[324814256,1714341062463,-500.0,0.00014518,2]
[324814257,1714341062473,-500.0,0.00014518,2]
[324814258,1714341062482,-500.0,0.00014518,2]
[324814259,1714341062491,-500.0,0.00014518,2]
[324814260,1714341062501,-500.0,0.00014518,2]
[324814261,1714341062511,-500.0,0.00014518,2]
[324814262,1714341062520,-500.0,0.00014518,2]
[324814263,1714341062529,-379.56705468,0.00014518,2]
[324814264,1714341062539,-2064.16,0.00014519,2]
[324814265,1714341062548,-843.47,0.00014519,2]
[324814266,1714341062557,-1166.48,0.00014519,2]
[324814267,1714341062567,-592.13,0.00014519,2]
[324814268,1714341062576,-2311.26,0.00014519,2]
[324814269,1714341062586,-2248.85,0.00014519,2]
[324814270,1714341062595,-500.0,0.0001452,2]
[324814271,1714341062604,-500.0,0.0001452,2]
[324814272,1714341062614,-500.0,0.0001452,2]
[324814273,1714341062624,-500.0,0.0001452,2]
[324814274,1714341062634,-500.0,0.0001452,2]
[324814275,1714341062644,-743.26,0.0001452,2]
[324814276,1714341062654,-1035.98,0.0001452,2]
[324814277,1714341062665,-583.16,0.0001452,2]
[324814278,1714341062675,-658.41,0.0001452,2]
[324814279,1714341062685,-633.29,0.0001452,2]
[324814280,1714341062696,-1038.44,0.0001452,2]
[324814281,1714341062705,-751.72,0.0001452,2]
[324814282,1714341062716,-510.93,0.0001452,2]
[324814283,1714341062726,-500.0,0.0001452,2]
[324814284,1714341062736,-500.0,0.0001452,2]
[324814285,1714341062746,-612.97,0.0001452,2]
[324814286,1714341062756,-500.0,0.0001452,2]
[324814287,1714341062765,-500.0,0.0001452,2]
[324814288,1714341062774,-500.0,0.0001452,2]
[324814289,1714341062784,-539.7,0.0001452,2]
[324814290,1714341062793,-340.61697276,0.0001452,2]
[324814291,1714341062802,-500.0,0.0001452,2]
[324814292,1714341062812,-1043.37,0.0001452,2]
[324814293,1714341062821,-500.0,0.0001452,2]
[324814294,1714341062831,-666.72,0.0001452,2]
[324814295,1714341062840,-176.64,0.0001452,2]
[324814296,1714341062849,-500.0,0.0001452,2]
[324814297,1714341062859,-685.26,0.0001452,2]
[324814298,1714341062868,-221.92,0.0001452,2]
[324814299,1714341062928,-1020.32,0.0001452,2]
[324814300,1714341062937,-500.0,0.0001452,2]
[324814301,1714341062947,-502.9,0.0001452,2]
[324814302,1714341062957,-657.62,0.0001452,2]
[324814303,1714341062966,-500.0,0.0001452,2]
[324814304,1714341062981,-529.3,0.0001452,2]
[324814305,1714341062990,-606.75,0.0001452,2]
[324814306,1714341062999,-500.0,0.0001452,2]
[324814307,1714341063009,-863.33,0.0001452,2]
[324814308,1714341063018,-1529.21,0.0001452,2]
[324814309,1714341063027,-518.89,0.0001452,2]
[324814310,1714341063036,-822.56,0.0001452,2]
[324814311,1714341063046,-4168.98,0.0001452,2]
[324814312,1714341063055,-671.78,0.0001452,2]
[324814313,1714341063065,-500.0,0.0001452,2]
[324814314,1714341063074,-1616.93,0.0001452,2]
[324814315,1714341063084,-721.38,0.0001452,2]
[324814316,1714341063095,-1027.03,0.0001452,2]
[324814317,1714341063108,-500.0,0.0001452,2]
[324814318,1714341063118,-7823.72,0.0001452,2]
[324814319,1714341063127,-547.0,0.0001452,2]
[324814320,1714341063138,-500.0,0.0001452,2]
[324814321,1714341063147,-500.0,0.0001452,2]
[324814322,1714341063156,-500.0,0.0001452,2]
[324814323,1714341063166,-2815.22,0.0001452,2]
[324814324,1714341063176,-1064.93,0.0001452,2]
[324814325,1714341063186,-500.0,0.0001452,2]
[324814326,1714341063195,-765.24,0.0001452,2]
[324814327,1714341063204,-500.0,0.0001452,2]
[324814328,1714341063214,-500.0,0.0001452,2]
[324814329,1714341063224,-904.55,0.0001452,2]
[324814330,1714341063233,-500.0,0.0001452,2]
[324814331,1714341063242,-500.0,0.0001452,2]
[324814332,1714341063252,-596.75,0.0001452,2]
[324814333,1714341063261,-1292.15,0.0001452,2]
[324814334,1714341063271,-500.0,0.0001452,2]
[324814335,1714341063280,-17248.02,0.0001452,2]
[324814336,1714341063289,-1054.15,0.0001452,2]
[324814337,1714341063299,-517.0,0.00014521,2]
[324814338,1714341063308,-200.0,0.00014533,2]
[324814339,1714341063317,-1000.0,0.0001466,2]
[324814340,1714341063326,-500.0,0.00014792,2]
[324814341,1714341063335,-500.0,0.00014792,2]
[324814342,1714341063344,-500.0,0.00014792,2]
[324814343,1714341063354,-500.0,0.00014792,2]
[324814344,1714341063363,-500.0,0.00014792,2]
[324814345,1714341063372,-500.0,0.00014792,2]
[324814346,1714341063381,-500.0,0.00014792,2]
[324814347,1714341063391,-500.0,0.00014792,2]
[324814348,1714341063400,-2064.16,0.00014793,2]
[324814349,1714341063409,-843.47,0.00014793,2]
[324814350,1714341063419,-1166.48,0.00014793,2]
[324814351,1714341063428,-592.13,0.00014793,2]
[324814352,1714341063437,-2311.26,0.00014793,2]
[324814353,1714341063448,-2248.85,0.00014793,2]
[324814354,1714341063457,-500.0,0.00014793,2]
[324814355,1714341063466,-500.0,0.00014794,2]
[324814356,1714341063477,-500.0,0.00014794,2]
[324814357,1714341063486,-517.93141,0.00014794,2]
[324814358,1714341063495,-500.0,0.00014794,2]
[324814359,1714341063504,-500.0,0.00014794,2]
[324814360,1714341063514,-743.26,0.00014794,2]
[324814361,1714341063523,-1035.98,0.00014794,2]
[324814362,1714341063531,-583.16,0.00014794,2]
[324814363,1714341063540,-658.41,0.00014794,2]
[324814364,1714341063549,-1038.44,0.00014794,2]
[324814365,1714341063558,-751.72,0.00014794,2]
[324814366,1714341063567,-510.93,0.00014794,2]
[324814367,1714341063577,-500.0,0.00014794,2]
[324814368,1714341063586,-500.0,0.00014794,2]
[324814369,1714341063595,-612.97,0.00014794,2]
[324814370,1714341063604,-500.0,0.00014794,2]
[324814371,1714341063613,-500.0,0.00014794,2]
[324814372,1714341063623,-500.0,0.00014794,2]
[324814373,1714341063632,-539.7,0.00014794,2]
[324814374,1714341063641,-500.0,0.00014794,2]
[324814375,1714341063650,-1043.37,0.00014794,2]
[324814376,1714341063659,-500.0,0.00014794,2]
[324814377,1714341063668,-666.72,0.00014794,2]
[324814378,1714341063677,-500.0,0.00014794,2]
[324814379,1714341063686,-685.26,0.00014794,2]
[324814380,1714341063695,-500.0,0.00014794,2]
[324814381,1714341063704,-1020.32,0.00014794,2]
[324814382,1714341063714,-502.9,0.00014794,2]
[324814383,1714341063724,-657.62,0.00014794,2]
[324814384,1714341063734,-500.0,0.00014794,2]
[324814385,1714341063743,-529.3,0.00014794,2]
[324814386,1714341063752,-606.75,0.00014794,2]
[324814387,1714341063762,-500.0,0.00014794,2]
[324814388,1714341063771,-863.33,0.00014794,2]
[324814389,1714341063780,-1529.21,0.00014794,2]
[324814390,1714341063789,-518.89,0.00014794,2]
[324814391,1714341063798,-822.56,0.00014794,2]
[324814392,1714341063808,-4168.98,0.00014794,2]
[324814393,1714341063817,-671.78,0.00014794,2]
[324814394,1714341063827,-500.0,0.00014794,2]
[324814395,1714341063836,-1616.93,0.00014794,2]
[324814396,1714341063845,-721.38,0.00014794,2]
[324814397,1714341063854,-1027.03,0.00014794,2]
[324814398,1714341063863,-500.0,0.00014794,2]
[324814399,1714341063872,-7823.72,0.00014794,2]
[324814400,1714341063881,-547.0,0.00014794,2]
[324814401,1714341063891,-500.0,0.00014794,2]
[324814402,1714341063900,-500.0,0.00014794,2]
[324814403,1714341063909,-500.0,0.00014794,2]
[324814404,1714341063919,-2815.22,0.00014794,2]
[324814405,1714341063928,-1064.93,0.00014794,2]
[324814406,1714341063937,-500.0,0.00014794,2]
[324814407,1714341063946,-765.24,0.00014794,2]
[324814408,1714341063955,-500.0,0.00014794,2]
[324814409,1714341063964,-500.0,0.00014794,2]
[324814410,1714341063973,-904.55,0.00014794,2]
[324814411,1714341063982,-192.53,0.00014794,2]
[324814412,1714341063992,-500.0,0.00014794,2]
[324814413,1714341064001,-596.75,0.00014794,2]
[324814414,1714341064010,-1292.15,0.00014794,2]
[324814415,1714341064019,-500.0,0.00014794,2]
[324814416,1714341064028,-17248.02,0.00014794,2]
[324814417,1714341064038,-1054.15,0.00014794,2]
[324814418,1714341064047,-261.66511868,0.00014843,2]
[324814419,1714341064056,-2100.0,0.00014897,2]
[324814420,1714341064069,-155.0,0.00014917,2]
[324814421,1714341064078,-155.0,0.00014917,2]
[324814422,1714341064087,-157.042906,0.00014948,2]
[324814423,1714341064097,-303.57,0.00014995,2]
[324814424,1714341064111,-157.042906,0.00014998,2]
[324814425,1714341064120,-8584.06854744,0.00015,2]
[324814426,1714341064129,-617.55337197,0.00015,2]
[324814427,1714341064139,-5668.0,0.00015,2]
[324814428,1714341064149,-500.0,0.00015066,2]
[324814429,1714341064158,-500.0,0.00015066,2]
[324814430,1714341064167,-391.25,0.00015066,2]
[324814431,1714341064177,-500.0,0.00015066,2]
[324814432,1714341064188,-500.0,0.00015066,2]
[324814433,1714341064197,-500.0,0.00015066,2]
[324814434,1714341064206,-500.0,0.00015066,2]
[324814435,1714341064216,-500.0,0.00015066,2]
[324814436,1714341064226,-2064.16,0.00015067,2]
[324814437,1714341064235,-843.47,0.00015067,2]
[324814438,1714341064244,-1166.48,0.00015067,2]
[324814439,1714341064253,-592.13,0.00015067,2]
[324814440,1714341064262,-2311.26,0.00015067,2]
[324814441,1714341064272,-2248.85,0.00015067,2]
[324814442,1714341064281,-1040.75215782,0.00015068,2]
[324814443,1714341064291,-1040.75215782,0.00015068,2]
[324814444,1714341064300,-1989.523191,0.00015068,2]
[324814445,1714341064309,-167.50036615,0.00015068,2]
[324814446,1714341064318,-37386.42732362,0.00015068,2]
[324814447,1714341064327,-500.0,0.00015068,2]
[324814448,1714341064337,-211.01898842,0.00015068,2]
[324814449,1714341064346,-591.34987403,0.00015068,2]
[324814450,1714341064355,-500.0,0.00015068,2]
[324814451,1714341064364,-743.26,0.00015068,2]
[324814452,1714341064373,-1035.98,0.00015068,2]
[324814453,1714341064383,-583.16,0.00015068,2]
[324814454,1714341064392,-658.41,0.00015068,2]
[324814455,1714341064401,-1038.44,0.00015068,2]
[324814456,1714341064410,-751.72,0.00015068,2]
[324814457,1714341064419,-510.93,0.00015068,2]
[324814458,1714341064429,-500.0,0.00015068,2]
[324814459,1714341064438,-500.0,0.00015068,2]
[324814460,1714341064447,-612.97,0.00015068,2]
[324814461,1714341064456,-500.0,0.00015068,2]
[324814462,1714341064465,-500.0,0.00015068,2]
[324814463,1714341064474,-500.0,0.00015068,2]
[324814464,1714341064483,-539.7,0.00015068,2]
[324814465,1714341064492,-500.0,0.00015068,2]
[324814466,1714341064501,-1043.37,0.00015068,2]
[324814467,1714341064510,-500.0,0.00015068,2]
[324814468,1714341064519,-666.72,0.00015068,2]
[324814469,1714341064527,-500.0,0.00015068,2]
[324814470,1714341064536,-685.26,0.00015068,2]
[324814471,1714341064546,-500.0,0.00015068,2]
[324814472,1714341064555,-1020.32,0.00015068,2]
[324814473,1714341064564,-502.9,0.00015068,2]